bitfinex/quotes_ETHUSD_20250801
["timestamp","ask_amount","ask_price","bid_price","bid_amount"]
[1754022203938,0.001,3691.4,3691.3,4.39031603]
[1754022204140,0.001,3691.4,3691.3,8.63431603]
[1754022204704,0.001,3691.4,3691.3,4.39031603]
[1754022204906,0.5004,3691.4,3691.3,4.39031603]
[1754022205402,0.001,3691.4,3691.3,4.39031603]
[1754022206810,0.001,3691.4,3691.3,3.84031603]
[1754022207810,0.001,3691.4,3691.3,3.1352]
[1754022208009,0.001,3691.4,3691.3,0.1352]
[1754022208206,0.9556,3691.4,3691.3,0.1352]
[1754022209054,0.9556,3691.4,3691.2,0.1352]
[1754022209210,0.9546,3691.3,3691.2,0.1352]
[1754022211604,0.001,3691.4,3691.2,0.1352]
[1754022212110,0.5004,3691.4,3691.3,0.1352]
[1754022212331,0.001,3691.4,3691.3,0.1352]
[1754022212531,0.001,3691.4,3691.3,1.65957188]
[1754022213356,0.5004,3691.4,3691.3,0.1352]
[1754022215165,0.9556,3691.4,3691.3,0.1352]
[1754022216169,0.9556,3691.4,3691.1,0.1352]
[1754022216372,0.9546,3691.3,3690.3,4.243]
[1754022216565,0.9546,3691.2,3691.0,0.1352]
[1754022216724,0.9546,3691.1,3691.0,0.1352]
[1754022227015,0.4994,3691.1,3691.0,0.1352]
[1754022227758,0.001,3691.3,3691.0,0.1352]
[1754022227964,0.001,3691.3,3691.2,0.1352]
[1754022229491,0.001,3691.8,3691.3,3.55]
[1754022229655,0.001,3691.8,3691.4,1.61122188]
[1754022229850,0.001,3691.8,3691.4,7.80138876]
[1754022230085,0.001,3691.8,3691.4,1.61122188]
[1754022230287,0.001,3691.8,3691.2,3.0]
[1754022230288,0.4654,3691.7,3691.2,3.0]
[1754022230452,0.001,3691.8,3691.2,6.19033678]
[1754022230895,0.001,3691.7,3691.2,6.19033678]
[1754022231046,0.001,3691.7,3691.2,3.0]
[1754022231390,0.8964,3691.6,3690.8,4.241]
[1754022231592,0.8964,3691.6,3690.9,0.51601]
[1754022232161,0.8964,3691.5,3690.9,0.51601]
[1754022232365,0.4654,3691.4,3690.7,3.0]
[1754022232698,0.001,3691.7,3690.7,3.0]
[1754022232993,0.4654,3691.6,3690.8,0.4812]
[1754022233195,0.4654,3691.6,3690.6,4.241]
[1754022233196,0.431,3691.5,3690.6,7.241]
[1754022233499,0.4654,3691.4,3690.6,7.241]
[1754022233680,0.4654,3691.4,3690.7,0.99506466]
[1754022234869,0.4654,3691.4,3690.9,7.93781566]
[1754022235065,0.4664,3691.7,3690.9,10.6471605]
[1754022235271,0.001,3691.7,3690.9,11.1283605]
[1754022236677,0.001,3691.7,3691.3,7.93781566]
[1754022236883,0.001,3691.7,3691.5,7.93781566]
[1754022237618,0.001,3691.7,3691.5,8.41901566]
[1754022238283,0.001,3691.7,3691.5,7.93781566]
[1754022238615,0.8964,3691.6,3691.4,0.79378157]
[1754022239397,0.8964,3691.5,3691.0,7.24]
[1754022239600,0.4654,3691.4,3691.0,7.24]
[1754022240001,0.001,3691.7,3691.3,0.1352]
[1754022240200,0.25084508,3691.7,3691.3,0.1352]
[1754022240405,0.25084508,3691.7,3691.5,0.1352]
[1754022240585,0.8964,3691.6,3691.5,0.1352]
[1754022241123,0.001,3691.7,3691.5,0.1352]
[1754022241319,0.71624816,3691.7,3691.5,0.1352]
[1754022241525,0.4654,3691.6,3691.5,0.1352]
[1754022241701,0.4654,3691.6,3689.3,0.4898]
[1754022241702,30.0,3691.5,3689.3,0.4898]
[1754022241902,0.1352,3690.8,3690.3,0.1352]
[1754022242103,0.8964,3690.7,3690.3,0.1352]
[1754022242326,0.8964,3690.6,3690.3,0.1352]
[1754022242486,0.8964,3690.5,3690.3,0.1352]
[1754022242692,0.8964,3690.5,3689.3,3.14841841]
[1754022242693,0.431,3690.5,3689.3,3.14841841]
[1754022242923,0.4654,3690.4,3690.1,0.1572]
[1754022243112,0.431,3690.4,3690.1,0.1572]
[1754022243317,0.8964,3690.3,3690.1,0.1572]
[1754022243517,0.431,3690.3,3690.1,0.1572]
[1754022243713,0.4654,3690.2,3690.1,0.1572]
[1754022244428,0.8964,3690.2,3690.1,0.1572]
[1754022244794,0.8964,3690.2,3690.1,0.022]
[1754022245032,5.2716,3690.2,3690.1,0.022]
[1754022245240,1.55876,3690.2,3690.1,0.022]
[1754022245548,5.2716,3690.2,3690.1,0.022]
[1754022246028,8.2716,3690.2,3690.1,0.022]
[1754022246231,40.98148022,3690.2,3690.1,0.022]
[1754022246630,41.53148022,3690.2,3690.1,0.022]
[1754022247058,41.78100906,3690.2,3690.1,0.022]
[1754022247223,44.50584182,3690.2,3690.1,0.022]
[1754022247534,44.50561636,3690.2,3690.1,0.022]
[1754022247697,45.05345293,3690.2,3690.1,0.022]
[1754022247899,45.0534575,3690.2,3690.1,0.022]
[1754022248100,36.26010054,3689.9,3689.1,0.02]
[1754022248298,36.26061476,3689.2,3689.1,0.02]
[1754022248537,47.01361476,3689.2,3689.1,0.02]
[1754022248697,47.91001476,3689.2,3689.1,0.02]
[1754022248898,50.57004752,3689.2,3689.1,0.02]
[1754022249701,47.85943276,3689.2,3689.1,0.02]
[1754022250004,47.86043276,3689.2,3689.1,0.02]
[1754022250207,50.57104752,3689.2,3689.1,0.02]
[1754022250534,47.86043276,3689.2,3689.1,0.02]
[1754022250711,46.39030856,3689.2,3689.1,0.02]
[1754022251117,42.14930856,3689.2,3689.1,0.02]
[1754022251498,9.93423276,3689.2,3689.1,0.02]
[1754022251698,11.7856,3689.2,3689.1,0.02]
[1754022252637,14.7856,3689.2,3689.1,0.02]
[1754022253345,13.8892,3689.2,3689.1,0.02]
[1754022253548,14.7856,3689.2,3689.1,0.02]
[1754022255635,13.8892,3689.2,3689.1,0.02]
[1754022256544,9.6482,3689.2,3689.1,0.02]
[1754022256845,13.8882,3689.2,3689.1,0.4714]
[1754022257210,6.513,3689.2,3689.1,0.4714]
[1754022257504,0.27257,3691.5,3689.1,1.046]
[1754022257505,4.241,3689.3,3689.1,1.046]
[1754022257702,4.241,3689.2,3689.1,0.02]
[1754022258159,4.241,3689.2,3689.1,0.6066]
[1754022258302,4.241,3689.2,3689.1,1.046]
[1754022258754,4.241,3689.2,3689.1,0.6066]
[1754022259840,0.1352,3689.9,3689.1,1.046]
[1754022260140,4.24,3689.8,3689.3,0.55]
[1754022260343,4.24,3689.7,3689.3,0.55]
[1754022260544,4.24,3689.7,3689.4,0.8908]
[1754022260834,4.24,3689.7,3689.5,0.8908]
[1754022261041,4.24,3689.7,3689.5,0.4394]
[1754022261243,4.24,3689.7,3689.6,0.5866]
[1754022261442,4.24,3689.7,3689.6,0.7442]
[1754022262231,4.24,3689.7,3689.6,0.2928]
[1754022262938,4.24,3689.7,3689.6,0.5866]
[1754022263142,0.1352,3690.3,3689.6,0.1352]
[1754022263321,0.1352,3690.3,3689.8,0.1352]
[1754022263322,4.73693452,3690.2,3689.8,0.1352]
[1754022263511,0.24846726,3690.1,3689.8,0.1352]
[1754022263913,0.2484303,3690.0,3689.8,0.1352]
[1754022264214,0.2484303,3690.0,3689.9,0.4514]
[1754022264640,0.49686071,3690.0,3689.9,0.4514]
[1754022265120,0.24843041,3690.0,3689.9,1.4408]
[1754022265418,0.24843041,3690.0,3689.9,1.5984]
[1754022265863,0.24843041,3690.0,3689.9,0.1576]
[1754022266016,0.24843041,3690.0,3689.8,0.1352]
[1754022266212,0.49681739,3689.9,3689.8,0.1352]
[1754022267343,0.24843041,3689.9,3689.8,0.1352]
[1754022267515,5.1581,3690.3,3689.8,0.1352]
[1754022267712,0.49696288,3690.2,3689.8,0.1352]
[1754022267945,1.41606288,3690.1,3689.8,0.1352]
[1754022268149,0.24848144,3690.0,3689.8,0.1352]
[1754022268648,4.94628144,3690.0,3689.8,0.1352]
[1754022268947,4.6978,3690.0,3689.8,0.1352]
[1754022269149,0.4588,3689.9,3689.2,0.55]
[1754022269319,0.4588,3689.9,3689.7,0.1352]
[1754022269719,0.24849853,3689.8,3689.7,0.1352]
[1754022270846,0.24849853,3689.9,3689.7,0.1352]
[1754022271048,0.4588,3689.8,3689.1,0.4734]
[1754022271248,0.24858533,3689.7,3689.4,0.1352]
[1754022271464,5.1571,3689.6,3689.4,0.1352]
[1754022271613,0.24858533,3689.5,3689.4,0.1352]
[1754022271814,4.238,3689.6,3689.4,0.1352]
[1754022274166,0.001,3690.2,3689.5,0.4514]
[1754022274314,4.238,3689.8,3689.5,0.8908]
[1754022274840,4.238,3689.9,3689.7,0.1352]
[1754022275027,0.9191,3689.8,3689.1,0.022]
[1754022275229,0.65091,3689.7,3689.1,0.1572]
[1754022275450,1.43481,3689.7,3689.1,0.022]
[1754022275649,0.9191,3689.6,3689.1,0.022]
[1754022275943,30.0,3689.5,3689.1,0.022]
[1754022276120,3.0,3689.1,3688.7,0.1]
[1754022276327,3.0,3688.9,3688.7,0.1]
[1754022276859,0.9191,3688.8,3688.7,0.1]
[1754022284574,8.1571,3688.8,3688.7,0.1]
[1754022285463,8.2923,3688.8,3688.7,0.1]
[1754022285671,9.12153,3688.8,3688.7,0.1]
[1754022285827,9.37047729,3688.8,3688.7,0.1]
[1754022286359,9.6194221,3688.8,3688.7,0.1]
[1754022287664,39.6194221,3688.8,3688.7,0.1]
[1754022288573,9.37047481,3688.8,3688.7,0.1]
[1754022288761,9.61930759,3688.8,3688.7,0.1]
[1754022289341,39.61930759,3688.8,3688.7,0.1]
[1754022290483,9.61930759,3688.8,3688.7,0.1]
[1754022291858,4.46220759,3688.8,3688.7,0.1]
[1754022292096,7.86997759,3688.8,3688.7,0.1]
[1754022292434,8.77887759,3688.8,3688.7,0.1]
[1754022294653,38.77887759,3688.8,3688.7,0.1]
[1754022295056,7.86997759,3688.8,3688.7,0.1]
[1754022295287,8.77887759,3688.8,3688.7,0.1]
[1754022295468,1.06571,3689.7,3688.7,0.1]
[1754022295469,0.001,3690.0,3688.7,0.1]
[1754022295781,0.001,3690.0,3688.8,4.83243274]
[1754022296077,0.001,3690.0,3689.8,0.1352]
[1754022296264,0.001,3690.0,3688.9,0.55]
[1754022296465,0.001,3690.0,3689.8,0.1352]
[1754022296782,0.02,3690.9,3689.8,14.90229083]
[1754022296965,0.02,3690.9,3690.1,6.25995365]
[1754022297171,0.02,3690.9,3690.1,7.31719311]
[1754022297679,0.02,3690.9,3690.1,7.45239311]
[1754022297881,0.02,3690.9,3690.1,9.63285392]
[1754022298782,0.02,3690.9,3690.1,5.86566081]
[1754022298984,0.02,3690.9,3690.1,8.57561446]
[1754022299276,0.02,3690.9,3690.1,5.86566081]
[1754022299975,0.02,3690.9,3690.1,5.57561446]
[1754022300280,0.001,3690.3,3690.1,5.57561446]
[1754022300479,0.02,3690.9,3690.6,0.55]
[1754022300658,0.02,3690.9,3690.7,0.32596406]
[1754022300842,0.02,3690.9,3690.8,0.1352]
[1754022301869,0.02,3690.9,3690.8,3.39463968]
[1754022302356,0.02,3690.9,3690.8,3.42173407]
[1754022302557,0.001,3691.5,3691.4,3.25899929]
[1754022302763,0.001,3691.5,3691.4,6.7834224]
[1754022303369,0.001,3691.5,3691.4,4.07442311]
[1754022303571,0.001,3691.5,3691.4,4.20962311]
[1754022303756,0.001,3691.5,3691.4,1.20962311]
[1754022304490,0.001,3691.5,3691.4,0.65962311]
[1754022304781,0.001,3691.5,3691.4,0.33372318]
[1754022305094,0.001,3691.5,3691.4,0.1352]
[1754022305297,0.9099,3691.5,3690.6,3.0]
[1754022305468,0.9089,3691.4,3691.2,0.1352]
[1754022305859,1.0441,3691.3,3690.8,0.1352]
[1754022306080,0.001,3691.5,3690.2,3.0]
[1754022306248,0.001,3691.5,3691.2,0.1352]
[1754022306654,0.9089,3691.4,3691.2,0.1352]
[1754022306855,0.9089,3691.3,3691.2,0.1352]
[1754022307057,1.0441,3691.3,3690.8,0.1352]
[1754022307256,0.9089,3691.2,3690.8,0.1352]
[1754022307652,0.1352,3691.3,3690.8,0.1352]
[1754022307991,0.4513,3691.5,3691.1,0.1352]
[1754022308189,0.001,3691.5,3691.1,0.1352]
[1754022308490,0.4503,3691.4,3691.1,0.1352]
[1754022308650,0.4596,3691.5,3691.1,0.1352]
[1754022308651,0.001,3691.5,3691.1,0.1352]
[1754022309091,0.001,3691.5,3691.1,0.41965337]
[1754022309667,0.001,3691.5,3691.2,14.35126291]
[1754022309985,0.001,3691.5,3691.4,0.1352]
[1754022311058,0.4513,3691.5,3691.4,0.1352]
[1754022311294,0.001,3691.5,3691.4,0.1352]
[1754022314315,0.001,3691.5,3691.0,2.81787063]
[1754022314316,0.001,3691.5,3691.2,0.55]
[1754022314461,0.001,3691.5,3691.4,0.1352]
[1754022317125,0.4326,3691.5,3691.4,0.1352]
[1754022317266,0.8987,3691.5,3691.3,0.1352]
[1754022317467,0.4316,3691.4,3691.2,0.1352]
[1754022317674,0.8977,3691.4,3691.2,0.1352]
[1754022317891,0.001,3691.5,3691.2,0.1352]
[1754022318165,0.8977,3691.3,3691.2,0.1352]
[1754022326422,0.001,3691.5,3691.2,0.1352]
[1754022326577,0.001,3691.5,3691.2,3.12875644]
[1754022326774,0.001,3691.5,3691.4,0.1352]
[1754022327073,0.001,3691.5,3691.4,3.25899929]
[1754022327303,0.001,3691.5,3691.4,0.6852]
[1754022327611,0.001,3691.5,3691.4,3.39419929]
[1754022327796,0.001,3691.5,3691.4,3.772921]
[1754022328215,0.001,3691.5,3691.4,1.06392171]
[1754022328510,0.8987,3691.5,3691.4,0.1352]
[1754022329418,0.8987,3691.5,3690.2,2.70982268]
[1754022329722,0.1352,3691.2,3690.6,0.1352]
[1754022330110,0.8977,3691.1,3690.6,0.1352]
[1754022330310,0.1352,3691.2,3690.6,0.1352]
[1754022330311,0.8977,3691.0,3690.6,0.1352]
[1754022330624,0.8977,3690.9,3690.6,0.1352]
[1754022330826,0.001,3691.5,3690.9,0.1352]
[1754022331037,0.001,3691.5,3691.2,0.55]
[1754022331323,0.001,3691.5,3691.4,3.39419929]
[1754022332226,0.001,3691.5,3691.4,0.6852]
[1754022332428,0.001,3691.5,3691.4,3.39419929]
[1754022332626,0.001,3691.5,3691.4,3.42128928]
[1754022332830,0.001,3691.5,3691.4,5.19854361]
[1754022333126,0.001,3691.5,3691.4,5.17145362]
[1754022333707,0.001,3691.5,3691.4,5.37356453]
[1754022334497,0.001,3691.5,3691.4,5.48212553]
[1754022334693,0.001,3691.7,3691.6,3.25885253]
[1754022335031,0.001,3691.8,3691.7,3.25877915]
[1754022335410,0.001,3691.8,3691.7,3.28586694]
[1754022335606,0.02,3691.9,3691.8,2.70870578]
[1754022335835,0.001,3692.1,3692.0,14.35067588]
[1754022336200,0.001,3692.1,3692.0,14.48587588]
[1754022336397,0.001,3692.1,3692.0,16.65671145]
[1754022336612,0.001,3692.1,3692.0,17.20671145]
[1754022336813,0.001,3692.1,3692.0,21.45071145]
[1754022337657,0.001,3692.1,3692.0,21.55924745]
[1754022338018,0.001,3692.1,3692.0,24.55924745]
[1754022338858,0.001,3692.1,3692.0,2.41457157]
[1754022339060,0.8987,3692.1,3692.0,0.1352]
[1754022341959,0.4671,3692.1,3692.0,0.1352]
[1754022342324,0.001,3692.1,3692.0,0.6852]
[1754022343445,0.8987,3692.1,3692.0,0.1352]
[1754022348399,0.8987,3692.1,3691.4,0.20211091]
[1754022348568,0.9363,3692.0,3691.6,0.1352]
[1754022348990,0.9363,3691.9,3691.5,0.1352]
[1754022349493,0.9363,3691.8,3691.5,0.1352]
[1754022349805,0.9363,3691.7,3691.5,0.1352]
[1754022350100,0.9363,3691.6,3691.5,0.1352]
[1754022355713,0.9363,3691.6,3690.8,0.20438877]
[1754022355914,1.0715,3691.5,3690.7,0.1]
[1754022356140,0.1352,3690.8,3690.7,0.1]
[1754022356298,1.0715,3690.8,3690.7,0.1]
[1754022358016,4.47865,3690.8,3690.7,0.1]
[1754022358203,1.72734242,3690.8,3690.7,0.1]
[1754022358399,1.61241955,3690.8,3690.7,0.1]
[1754022358638,1.47865,3690.8,3690.7,0.1]
[1754022359003,1.72713368,3690.8,3690.7,0.1]
[1754022360231,5.96313368,3690.8,3690.7,0.1]
[1754022360421,8.96313368,3690.8,3690.7,0.1]
[1754022361034,8.96413368,3690.8,3690.7,0.1]
[1754022361424,4.47865,3690.8,3690.7,0.1]
[1754022361610,0.1352,3690.9,3690.7,0.1]
[1754022361958,0.4444,3690.8,3690.7,0.1]
[1754022362140,0.9363,3690.8,3690.7,0.1]
[1754022362308,1.18444329,3690.8,3690.7,0.1]
[1754022362508,0.9363,3690.8,3690.7,0.1]
[1754022362769,1.0715,3690.8,3690.7,0.1]
[1754022363115,4.0715,3690.8,3690.7,0.1]
[1754022363313,4.90235,3690.8,3690.7,0.1]
[1754022364046,1.0715,3690.8,3690.7,0.1]
[1754022366742,5.3085,3690.8,3690.7,0.1]
[1754022367652,1.0715,3690.8,3690.7,0.1]
[1754022367990,0.1352,3690.8,3690.7,0.1]
[1754022368278,7.3722,3691.3,3690.7,0.2352]
[1754022368785,0.9363,3691.2,3690.7,0.1]
[1754022368944,0.1352,3690.8,3690.7,0.1]
[1754022369358,1.0715,3690.8,3690.7,0.1]
[1754022369984,0.4919,3691.0,3690.7,0.1]
[1754022371123,0.9363,3690.9,3690.7,0.1]
[1754022371268,0.9363,3690.8,3690.7,0.1]
[1754022371472,1.0715,3690.8,3690.7,0.1]
[1754022372104,5.3085,3690.8,3690.7,0.1]
[1754022372450,0.6271,3690.8,3690.7,0.108315]
[1754022372653,4.8641,3690.8,3690.7,0.108315]
[1754022372850,4.3722,3690.8,3690.7,0.108315]
[1754022373074,4.237,3690.8,3690.7,0.108315]
[1754022374991,4.7289,3690.8,3690.7,0.108315]
[1754022375159,5.78139,3690.8,3690.7,0.108315]
[1754022375557,0.1352,3690.8,3690.7,0.108315]
[1754022375893,3.0,3691.3,3690.7,0.243515]
[1754022375894,4.237,3691.0,3690.7,0.243515]
[1754022376284,0.1352,3691.3,3690.7,0.243515]
[1754022377002,4.237,3691.5,3691.1,0.1352]
[1754022377563,0.4283,3691.4,3691.1,0.1352]
[1754022377783,0.90835,3691.3,3690.7,0.108315]
[1754022377985,0.4883,3691.2,3690.8,0.1352]
[1754022378399,0.4283,3691.2,3690.8,0.1352]
[1754022378563,0.4883,3691.1,3690.8,0.1352]
[1754022378767,0.9166,3691.1,3690.8,0.1352]
[1754022379026,0.4883,3691.0,3690.8,0.1352]
[1754022379376,5.2888,3690.9,3690.7,0.108315]
[1754022379579,0.4883,3690.8,3690.7,0.108315]
[1754022379806,0.9166,3690.8,3690.7,0.108315]
[1754022380703,1.44548,3690.8,3690.7,0.108315]
[1754022382307,4.44548,3690.8,3690.7,0.108315]
[1754022385303,34.69502116,3690.8,3690.7,0.108315]
[1754022385694,4.69502116,3690.8,3690.7,0.108315]
[1754022386311,4.66819734,3690.8,3690.7,0.108315]
[1754022387316,34.66819734,3690.8,3690.7,0.108315]
[1754022388678,37.37763702,3690.8,3690.7,0.108315]
[1754022388880,37.92763702,3690.8,3690.7,0.108315]
[1754022389282,38.17721342,3690.8,3690.7,0.108315]
[1754022390921,38.17729338,3690.8,3690.7,0.108315]
[1754022392231,6.1548537,3690.8,3690.7,0.108315]
[1754022392404,39.1548537,3690.8,3690.7,0.108315]
[1754022392748,4.02807752,3690.8,3690.7,0.108315]
[1754022393036,4.87139752,3690.8,3690.7,0.108315]
[1754022393191,4.73619752,3690.8,3690.7,0.108315]
[1754022393390,4.48662112,3690.8,3690.7,0.135315]
[1754022393808,4.48662112,3690.8,3690.7,0.108315]
[1754022394125,4.7362648,3690.8,3690.7,0.108315]
[1754022394311,7.7362648,3690.8,3690.7,0.108315]
[1754022394622,9.44001128,3690.8,3690.7,0.108315]
[1754022397290,7.97492112,3690.8,3690.7,0.108315]
[1754022397491,7.62182112,3690.8,3690.7,0.108315]
[1754022397720,7.87143308,3690.8,3690.7,0.108315]
[1754022397921,0.49923308,3690.8,3690.7,0.108315]
[1754022398092,4.73623308,3690.8,3690.7,0.270515]
[1754022399102,4.48662112,3690.8,3690.7,0.270515]
[1754022399326,4.73619775,3690.8,3690.7,0.270515]
[1754022399621,4.48662112,3690.8,3690.7,0.270515]
[1754022400711,0.24962112,3690.8,3690.7,0.270515]
[1754022400915,4.236,3691.1,3690.7,0.820515]
[1754022401117,0.1352,3691.3,3690.8,0.027]
[1754022401118,0.2496112,3691.0,3690.8,0.027]
[1754022401335,4.3712,3691.3,3690.8,0.05409439]
[1754022401336,0.2496112,3690.9,3690.8,0.05409439]
[1754022401511,4.236,3691.3,3690.9,0.1352]
[1754022401707,0.49922438,3691.2,3691.0,0.027]
[1754022401908,0.24961219,3691.1,3691.0,0.02709292]
[1754022402119,0.24961219,3691.1,3691.0,0.16229292]
[1754022402545,0.24961219,3691.1,3691.0,0.18929292]
[1754022402851,0.24961219,3691.1,3691.0,0.57924428]
[1754022403032,0.24961219,3691.1,3691.0,0.18929292]
[1754022403944,0.24961219,3691.1,3691.0,0.73929292]
[1754022404732,0.24961219,3691.1,3691.0,0.7122]
[1754022406060,0.49916612,3691.1,3691.0,0.7122]
[1754022407614,0.49916612,3691.1,3691.0,3.42149287]
[1754022407938,0.001,3691.9,3691.1,0.55]
[1754022408243,0.001,3691.9,3691.8,0.6852]
[1754022408456,0.001,3691.9,3691.8,0.71228705]
[1754022408639,0.001,3691.9,3691.8,3.44799283]
[1754022408828,0.001,3691.9,3691.8,0.73928705]
[1754022409028,0.001,3691.9,3691.8,1.95034039]
[1754022409234,0.001,3691.9,3691.8,1.97742744]
[1754022409430,0.001,3691.9,3691.8,1.95034039]
[1754022410161,0.001,3691.9,3691.8,4.65904617]
[1754022412349,0.001,3691.9,3691.8,8.92013322]
[1754022412557,0.001,3691.9,3691.8,8.89304617]
[1754022413952,0.001,3691.9,3691.8,6.15734039]
[1754022414216,0.001,3691.9,3691.8,8.86604617]
[1754022414553,0.001,3691.9,3691.8,1.92334039]
[1754022420880,0.9328,3691.9,3691.8,0.1352]
[1754022421076,0.9328,3691.9,3691.0,4.232]
[1754022421225,0.001,3691.9,3691.7,0.1352]
[1754022421429,0.9318,3691.8,3691.7,0.1352]
[1754022427977,0.001,3691.9,3691.7,0.1352]
[1754022428477,0.001,3691.9,3691.8,0.02708705]
[1754022428772,0.001,3691.9,3691.7,0.1352]
[1754022429144,0.001,3691.9,3691.8,0.02708705]
[1754022429474,0.001,3691.9,3691.7,0.1352]
[1754022429681,0.9318,3691.8,3691.7,0.1352]
[1754022432482,0.001,3691.9,3691.7,0.1352]
[1754022432983,0.001,3691.9,3691.8,0.55]
[1754022434687,0.001,3691.9,3691.7,0.42230737]
[1754022434863,0.9318,3691.8,3691.7,0.6852]
[1754022435886,0.4733,3691.8,3691.7,0.6852]
[1754022436688,0.001,3691.9,3691.7,0.6852]
[1754022437004,0.001,3691.9,3691.8,0.55]
[1754022438085,0.001,3691.9,3691.7,0.1352]
[1754022438292,0.001,3691.9,3691.8,1.78273168]
[1754022440598,0.001,3691.9,3691.8,0.55]
[1754022442663,0.4707,3691.9,3691.7,0.1352]
[1754022442864,0.4706,3691.9,3691.7,0.1352]
[1754022443063,0.4706,3691.9,3691.7,0.6852]
[1754022443064,0.4697,3691.8,3691.7,0.6852]
[1754022445169,0.9393,3691.8,3691.7,0.6852]
[1754022445369,0.4697,3691.8,3691.7,1.17672]
[1754022445886,0.001,3691.9,3691.8,0.55]
[1754022446076,0.4707,3691.9,3691.8,0.55]
[1754022446265,0.001,3691.9,3691.8,0.55]
[1754022447073,0.9403,3691.9,3691.7,0.62672]
[1754022447272,0.9393,3691.8,3691.7,1.17672]
[1754022447865,0.9393,3691.8,3691.7,0.1352]
[1754022448090,0.9393,3691.8,3691.1,0.002]
[1754022448290,0.001,3691.9,3691.4,0.1352]
[1754022448565,0.9393,3691.7,3691.4,0.1352]
[1754022448898,1.18941264,3691.6,3691.1,0.002]
[1754022449084,1.57472172,3691.5,3691.1,0.002]
[1754022449404,1.59664119,3691.4,3691.1,0.002]
[1754022449569,0.49986902,3691.3,3691.1,0.002]
[1754022449769,0.9393,3691.3,3691.1,0.002]
[1754022450075,0.4696,3691.3,3691.1,0.002]
[1754022450276,0.4697,3691.2,3691.1,0.002]
[1754022450682,0.1362,3691.9,3691.1,0.002]
[1754022450683,0.4697,3691.6,3691.1,0.1372]
[1754022450896,0.4696,3691.7,3691.1,0.1372]
[1754022450897,0.9393,3691.5,3691.1,0.1372]
[1754022451063,0.4697,3691.4,3691.1,0.002]
[1754022451493,0.4697,3691.6,3691.3,0.1352]
[1754022451682,0.9393,3691.5,3691.3,0.1352]
[1754022451883,0.4696,3691.5,3691.1,0.002]
[1754022452097,0.4697,3691.4,3691.1,0.34853485]
[1754022452488,0.4697,3691.4,3691.3,0.6852]
[1754022453079,0.001,3691.9,3691.3,0.6852]
[1754022453412,0.001,3691.9,3691.4,0.55]
[1754022453563,0.001,3691.9,3691.7,0.55]
[1754022453766,0.001,3691.9,3691.8,0.6852]
[1754022454401,0.001,3691.9,3691.8,1.04083787]
[1754022455576,0.001,3691.9,3691.8,3.74954365]
[1754022455780,0.001,3691.9,3691.8,3.7766307]
[1754022456101,0.001,3691.9,3691.8,3.74954365]
[1754022457580,0.001,3691.9,3691.8,3.7766307]
[1754022457974,0.001,3691.9,3691.8,11.0046307]
[1754022458176,0.001,3692.3,3691.8,11.0046307]
[1754022458177,0.001,3692.3,3692.2,2.70841232]
[1754022458379,0.001,3692.5,3692.4,6.25826562]
[1754022458781,0.001,3692.5,3692.4,6.42066562]
[1754022458979,0.001,3692.5,3692.4,6.28526562]
[1754022459224,0.021,3692.9,3692.8,6.25797227]
[1754022459372,0.021,3692.9,3692.8,22.12808911]
[1754022459680,0.021,3692.9,3692.8,25.01532187]
[1754022460070,0.021,3692.9,3692.8,25.21696441]
[1754022461272,0.001,3693.8,3693.7,2.70731245]
[1754022461471,0.001,3693.8,3693.7,10.48431245]
[1754022461673,0.001,3693.8,3693.7,12.94039835]
[1754022462510,0.001,3694.2,3694.1,3.2570193]
[1754022462709,0.4697,3695.5,3694.8,6.25650644]
[1754022462900,0.4697,3695.5,3694.8,10.48250644]
[1754022463813,0.02,3695.9,3694.8,10.48250644]
[1754022464015,0.4697,3695.7,3694.8,10.48250644]
[1754022465614,0.4896,3695.9,3695.4,11.64211684]
[1754022465927,0.02,3695.9,3695.7,3.25584733]
[1754022466682,0.02,3695.9,3695.7,7.47984733]
[1754022468582,0.02,3695.9,3695.7,10.97640567]
[1754022468807,0.02,3695.9,3695.7,10.81400567]
[1754022469012,0.02,3695.9,3695.7,11.71071014]
[1754022470108,0.02,3695.9,3695.7,11.70971014]
[1754022475529,0.02,3695.9,3695.7,7.48671014]
[1754022475734,0.02,3695.9,3695.7,11.70771014]
[1754022476747,0.02,3695.9,3695.7,7.48671014]
[1754022476981,0.8952,3695.8,3695.7,3.33415834]
[1754022477272,0.8952,3695.8,3695.7,7.55515834]
[1754022478015,0.8952,3695.8,3695.7,3.88415834]
[1754022478217,0.8952,3695.8,3695.7,8.10515834]
[1754022479125,0.8952,3695.8,3695.7,10.81100567]
[1754022479336,0.4517,3695.8,3695.7,7.94171153]
[1754022479544,0.8952,3695.8,3695.7,9.4558642]
[1754022479862,0.8952,3695.8,3695.7,5.2358642]
[1754022480023,0.8952,3695.8,3695.7,9.4558642]
[1754022480224,0.8952,3695.8,3695.7,3.33415834]
[1754022480440,0.8952,3695.8,3695.7,4.55415834]
[1754022480839,0.8952,3695.8,3695.7,5.10415834]
[1754022481049,0.8952,3695.8,3695.7,0.33415834]
[1754022481246,0.8952,3695.8,3695.7,4.55415834]
[1754022482054,0.8952,3695.8,3695.7,4.3552]